bitfinex/quotes_ETHUSD_20260209
["timestamp","ask_amount","ask_price","bid_price","bid_amount"]
[1770679936238,1.18483412,2110.0,2109.3,2.63846012]
[1770679936435,1.01232275,2109.9,2109.3,2.63846012]
[1770679936636,1.18483412,2110.0,2109.3,2.63846012]
[1770679936842,1.01232447,2109.9,2109.4,1.4532328]
[1770679937040,1.18480907,2110.1,2109.4,1.4532328]
[1770679937287,1.01230096,2110.0,2109.4,1.4532328]
[1770679937576,1.01230096,2109.9,2109.4,2.63837582]
[1770679937744,1.18485774,2110.0,2109.4,2.63837582]
[1770679937940,1.01223982,2109.9,2109.4,2.63837582]
[1770679938137,1.18485774,2110.0,2109.4,2.63937582]
[1770679938375,0.002,2109.8,2109.4,2.63937582]
[1770679938667,0.002,2109.8,2109.4,1.18614302]
[1770679939543,0.002,2109.8,2109.4,0.001]
[1770679941178,1.01388841,2109.7,2109.4,0.001]
[1770679941473,1.01388841,2109.6,2109.2,0.001]
[1770679941645,2.19900967,2109.5,2109.2,0.001]
[1770679941846,1.01388841,2109.4,2109.2,0.001]
[1770679942156,1.01388841,2109.3,2109.2,0.001]
[1770679944752,2.87691392,2109.8,2109.2,0.001]
[1770679944948,1.0136803,2109.7,2109.2,0.001]
[1770679945177,1.0136803,2109.6,2109.2,0.001]
[1770679945380,1.0136803,2109.5,2109.2,0.001]
[1770679945583,1.0136803,2109.4,2109.2,0.001]
[1770679945752,1.18522732,2109.3,2109.2,0.001]
[1770679945949,1.18520875,2109.4,2109.2,0.001]
[1770679946159,1.18513971,2109.5,2109.2,0.001]
[1770679946372,1.01360784,2109.4,2109.2,0.001]
[1770679946576,1.1851013,2109.6,2109.2,0.001]
[1770679946752,1.01364472,2109.5,2109.2,0.001]
[1770679947076,1.01364472,2109.4,2109.2,0.001]
[1770679947288,1.1851013,2109.6,2109.2,0.001]
[1770679947574,1.01362746,2109.5,2109.2,0.001]
[1770679947759,2.19876578,2109.4,2109.2,0.001]
[1770679947955,1.18517113,2109.4,2109.2,0.001]
[1770679950884,4.74060156,2109.5,2109.2,0.001]
[1770679951061,1.01355019,2109.4,2109.2,0.001]
[1770679951257,6.09446733,2109.5,2109.4,0.001]
[1770679951258,2.53898072,2109.5,2109.4,0.001]
[1770679951486,3.5525771,2109.5,2109.2,0.001]
[1770679951784,1.01359638,2109.4,2109.2,0.001]
[1770679951963,0.002,2109.4,2109.2,0.001]
[1770679953889,0.002,2109.4,2109.2,1.23424876]
[1770679954583,0.002,2109.4,2109.2,0.001]
[1770679960670,1.01429335,2109.3,2108.8,0.001]
[1770679960875,2.36815912,2109.2,2108.5,1.18564124]
[1770679961076,1.35386577,2109.2,2108.5,1.18564124]
[1770679961276,1.01450899,2109.1,2108.5,1.18564124]
[1770679961470,1.01450899,2109.0,2108.5,1.18564124]
[1770679961669,1.35386577,2109.2,2108.5,1.18564124]
[1770679961870,1.0143007,2109.1,2108.5,1.18564124]
[1770679962092,1.0143007,2109.0,2108.5,1.18564124]
[1770679962283,1.35386577,2109.2,2108.5,1.18564124]
[1770679962478,2.3680425,2109.1,2108.3,0.001]
[1770679962685,1.69243815,2109.4,2108.3,0.001]
[1770679962686,1.18545213,2108.9,2108.3,0.001]
[1770679962879,1.01417673,2108.8,2108.3,0.001]
[1770679963078,1.18545213,2108.9,2108.3,0.001]
[1770679963291,1.01417006,2108.8,2108.3,0.001]
[1770679963495,2.36803583,2108.8,2108.3,0.001]
[1770679963667,2.36803583,2108.8,2108.7,0.001]
[1770679963863,2.36803583,2108.8,2108.3,0.001]
[1770679964093,1.01417006,2108.7,2108.3,0.001]
[1770679964391,1.35386577,2108.8,2108.5,0.001]
[1770679967193,1.18556456,2108.7,2108.5,0.001]
[1770679971707,1.18539592,2109.0,2108.5,0.001]
[1770679971906,1.01317217,2108.9,2108.5,0.001]
[1770679972099,1.01317217,2108.8,2108.5,0.001]
[1770679972297,1.18539592,2109.0,2108.5,0.001]
[1770679972488,1.01303588,2108.9,2108.5,0.001]
[1770679972692,1.01303588,2108.9,2108.3,0.001]
[1770679972693,2.19855154,2108.8,2108.3,0.001]
[1770679973011,2.39318886,2108.8,2108.3,0.001]
[1770679973198,1.01321098,2108.7,2108.3,0.001]
[1770679973513,2.39318886,2108.8,2108.3,0.001]
[1770679973803,1.01305745,2108.7,2108.3,0.001]
[1770679973972,2.39318886,2108.8,2108.3,0.001]
[1770679974372,2.39318886,2108.8,2108.1,1.18690077]
[1770679974373,1.2076732,2108.6,2108.1,0.001]
[1770679974597,1.2076732,2108.4,2108.1,0.001]
[1770679974784,2.1986513,2108.3,2108.1,0.001]
[1770679974979,1.18578949,2108.3,2108.1,0.001]
[1770679975984,2.21987712,2108.2,2107.6,0.001]
[1770679976190,1.2076732,2108.2,2107.6,0.001]
[1770679976906,2.19748816,2108.1,2107.6,0.001]
[1770679977092,1.18590199,2108.1,2107.6,0.001]
[1770679977302,2.39343737,2108.4,2107.6,1.1636807]
[1770679977606,1.01109003,2108.3,2107.6,1.1636807]
[1770679977805,1.18576417,2108.4,2107.6,1.1636807]
[1770679978007,1.01108344,2108.3,2107.6,1.1636807]
[1770679978190,1.18576417,2108.4,2107.6,1.1636807]
[1770679978501,1.01076274,2108.3,2107.6,1.1636807]
[1770679978807,1.18576417,2108.4,2107.6,1.1636807]
[1770679979007,2.19657311,2108.3,2107.7,1.18612705]
[1770679979209,1.18581063,2108.3,2107.7,1.18612705]
[1770679980207,6.43559614,2108.7,2107.8,1.1626807]
[1770679980208,1.69243815,2108.7,2107.8,1.1626807]
[1770679980410,0.002,2108.7,2108.0,1.1626807]
[1770679981389,0.002,2108.7,2108.2,1.1626807]
[1770679983284,0.002,2108.7,2108.3,1.18578949]
[1770679984201,1.69043815,2109.3,2108.3,1.18578949]
[1770679984202,0.002,2109.8,2108.8,9.72219105]
[1770679984511,0.002,2109.8,2109.1,0.05928385]
[1770679984689,0.002,2109.8,2109.1,1.22196455]
[1770679985210,0.002,2109.8,2109.2,1.1626807]
[1770679985411,1.2096732,2110.3,2109.4,1.1626807]
[1770679985601,0.002,2110.3,2109.4,1.1626807]
[1770679986313,1.2096732,2110.3,2109.3,1.18522732]
[1770679988213,1.2076732,2110.1,2109.2,1.18528351]
[1770679989721,0.002,2109.8,2109.2,1.18528351]
[1770679990919,0.002,2109.8,2109.1,1.1626807]
[1770679992918,0.002,2109.8,2109.3,1.1626807]
[1770679994934,0.002,2109.8,2109.4,1.18517113]
[1770679999424,0.002,2109.8,2109.2,2.34796421]
[1770680000099,0.002,2109.8,2109.2,1.18528351]
[1770680000294,1.1085177,2109.8,2109.2,1.18528351]
[1770680000925,0.002,2109.8,2109.2,1.18528351]
[1770680002024,1.1085177,2109.8,2109.5,0.001]
[1770680004004,1.1065177,2109.6,2109.5,0.001]
[1770680006830,2.29157647,2109.6,2109.5,0.001]
[1770680009543,1.1065177,2109.6,2109.5,0.001]
[1770680010219,0.002,2109.8,2109.5,0.001]
[1770680013225,0.002,2109.8,2109.5,1.07990528]
[1770680014234,0.002,2109.8,2109.5,0.001]
[1770680014618,1.1085177,2109.8,2109.3,0.001]
[1770680015219,1.1085177,2109.8,2109.7,0.001]
[1770680015418,0.002,2109.6,2109.3,0.001]
[1770680015613,0.002,2109.6,2109.5,0.001]
[1770680015926,0.002,2109.6,2109.3,0.001]
[1770680027044,0.002,2109.6,2109.3,1.18622732]
[1770680028423,0.002,2109.6,2109.5,0.001]
[1770680029244,0.002,2109.6,2109.5,1.07990528]
[1770680029650,0.002,2109.8,2109.5,1.07990528]
[1770680031050,0.002,2109.8,2109.5,0.001]
[1770680031266,1.09010567,2109.8,2109.5,0.001]
[1770680033037,2.27505835,2109.8,2109.5,0.001]
[1770680034757,1.09010567,2109.8,2109.5,0.001]
[1770680035163,0.002,2109.8,2109.5,0.001]
[1770680035969,0.002,2110.1,2109.7,1.0162266]
[1770680036282,0.002,2110.5,2109.9,1.07551045]
[1770680036561,0.002,2110.5,2109.9,1.0162266]
[1770680037164,0.002,2110.5,2110.0,1.18483412]
[1770680037539,0.002,2110.5,2109.9,1.18486391]
[1770680038441,1.08810567,2110.1,2109.5,0.001]
[1770680038859,1.08810567,2110.4,2109.5,0.001]
[1770680039149,1.08810567,2110.0,2109.5,0.001]
[1770680039535,1.18489027,2109.9,2109.5,0.001]
[1770680040776,2.2729764,2110.0,2109.5,0.001]
[1770680040968,2.27294158,2110.0,2109.7,0.001]
[1770680041164,1.18483591,2110.0,2109.7,0.001]
[1770680041546,2.27488364,2110.1,2109.7,0.001]
[1770680041748,1.18677797,2110.1,2109.7,0.001]
[1770680041983,0.002,2110.1,2109.7,0.001]
[1770680042152,0.002,2110.1,2109.7,1.0172266]
[1770680043173,0.002,2110.1,2109.7,0.001]
[1770680043850,1.08810567,2109.9,2109.3,0.001]
[1770680047192,1.08810567,2109.9,2107.8,1.0162266]
[1770680047193,1.14738952,2108.9,2107.8,1.0162266]
[1770680047478,1.08810567,2108.9,2107.9,1.18597191]
[1770680047688,1.14738952,2108.8,2107.8,2.20229194]
[1770680047894,1.14738952,2108.8,2107.8,1.0162266]
[1770680048596,1.14738952,2108.8,2107.7,1.1860847]
[1770680049163,2.27367023,2108.7,2107.6,4.74464669]
[1770680049695,1.18554388,2108.8,2107.7,1.0162266]
[1770680051482,5.83012412,2108.9,2107.8,1.18607078]
[1770680051697,5.83012412,2108.9,2107.8,2.20229738]
[1770680051992,1.08810567,2108.8,2107.8,2.20229738]
[1770680052297,1.08810567,2108.8,2107.8,1.18607078]
[1770680052692,1.14738952,2108.8,2107.8,1.18607078]
[1770680053401,1.09010567,2108.6,2107.9,0.001]
[1770680053791,1.18567702,2108.5,2107.9,0.001]
[1770680053991,2.27378269,2108.5,2107.9,0.001]
[1770680054496,1.18766209,2108.6,2107.9,0.001]
[1770680055900,0.002,2108.6,2107.9,0.001]
[1770680056795,0.002,2108.6,2107.9,1.0172266]
[1770680057592,2.27337673,2109.3,2108.1,1.0162266]
[1770680057904,1.18527106,2109.3,2108.3,1.0162266]
[1770680059188,1.18527106,2109.3,2107.9,4.74488992]
[1770680059189,1.14738952,2108.6,2107.9,0.001]
[1770680059395,1.08810567,2108.4,2107.8,1.0162266]
[1770680059782,1.08810567,2108.4,2107.6,1.18713998]
[1770680059783,1.14738952,2108.4,2107.6,0.001]
[1770680059999,1.03936044,2108.2,2107.6,0.001]
[1770680060893,0.05928385,2108.0,2107.6,0.001]
[1770680061080,0.97601191,2107.9,2107.0,1.18648412]
[1770680061909,4.28901191,2108.2,2107.0,2.17272601]
[1770680062085,1.18590199,2108.1,2107.0,2.17272601]
[1770680063017,5.47489664,2108.2,2107.1,0.98624189]
[1770680063601,0.97601191,2108.1,2107.0,1.18648412]
[1770680064004,0.97601191,2107.9,2106.9,4.74626176]
[1770680066083,1.18607078,2107.8,2107.2,0.001]
[1770680066887,0.002,2107.9,2107.3,0.98624189]
[1770680068993,0.002,2108.1,2107.5,0.98624189]
[1770680069512,0.002,2108.1,2107.6,0.98624189]
[1770680069720,1.18548017,2108.9,2107.6,0.98624189]
[1770680069897,2.16149208,2108.9,2107.6,0.98624189]
[1770680071020,0.97601191,2108.8,2107.7,1.18612705]
[1770680071214,0.97601191,2108.7,2107.7,1.18612705]
[1770680072105,0.97601191,2108.6,2107.7,1.18612705]
[1770680072702,0.97601191,2108.8,2107.7,1.18612705]
[1770680073321,2.1615582,2108.8,2107.6,4.74450823]
[1770680074802,1.18554629,2108.8,2107.6,4.74450823]
[1770680074995,0.97601191,2108.7,2107.6,4.74450823]
[1770680075195,1.18562079,2108.6,2107.6,4.74450823]
[1770680076817,2.1616327,2108.6,2107.6,4.74450823]
[1770680077120,2.1616327,2108.6,2107.6,5.73075012]
[1770680078425,0.97601191,2108.6,2107.6,5.73075012]
[1770680078925,0.002,2108.4,2107.7,0.98624189]
[1770680079728,0.002,2108.4,2107.8,2.17231267]
[1770680081629,0.002,2108.4,2107.9,0.98624189]
[1770680083821,0.002,2108.4,2108.0,1.18595825]
[1770680083991,0.002,2108.4,2108.0,2.17220014]
[1770680084822,0.002,2108.4,2108.1,0.98624189]
[1770680085806,0.002,2108.4,2108.2,1.18584574]
[1770680087212,0.002,2108.4,2107.9,4.74396372]
[1770680087521,0.002,2108.4,2108.1,1.18589785]
[1770680087824,0.002,2108.4,2107.8,1.18607078]
[1770680089495,0.002,2108.4,2107.9,0.98624189]
[1770680089701,0.002,2108.6,2108.0,0.97943237]
[1770680089897,0.002,2108.6,2108.1,2.16533436]
[1770680090096,3.316,2109.0,2108.2,0.97943237]
[1770680091005,0.002,2109.0,2108.2,0.97943237]
[1770680091227,0.002,2109.0,2108.3,0.97943237]
[1770680091930,0.002,2109.0,2108.4,1.18573325]
[1770680092303,0.002,2108.6,2108.4,1.18573325]
[1770680092540,0.002,2109.0,2108.4,1.18573325]
[1770680093922,0.002,2109.0,2108.4,2.16516562]
[1770680094705,0.002,2109.0,2108.5,0.97943237]
[1770680095133,0.002,2109.5,2109.1,0.97943237]
[1770680095323,0.002,2109.7,2109.1,0.97943237]
[1770680096105,0.002,2109.7,2109.2,1.18528351]
[1770680098206,0.002,2109.7,2109.1,4.74113407]
[1770680098843,0.002,2110.1,2109.2,0.97943237]
[1770680100644,0.9602192,2110.1,2109.3,1.18522732]
[1770680102427,0.002,2110.1,2109.3,2.16465969]
[1770680102632,0.002,2110.1,2109.2,4.7409093]
[1770680102949,0.002,2110.1,2109.2,5.72034167]
[1770680103139,0.9602192,2110.1,2109.2,5.72034167]
[1770680104336,0.002,2109.9,2109.2,5.72034167]
[1770680105358,0.002,2109.9,2109.4,0.97943237]
[1770680106402,0.002,2110.3,2109.4,0.97943237]
[1770680106740,0.002,2110.3,2109.5,2.16454732]
[1770680107045,0.002,2110.3,2109.6,0.97943237]
[1770680107266,0.002,2110.3,2109.7,0.97943237]
[1770680107563,0.002,2110.6,2109.6,13.04252009]
[1770680107564,0.002,2110.6,2110.0,0.97943237]
[1770680107737,0.002,2110.8,2110.2,10.70995246]
[1770680107932,0.002,2110.8,2110.3,0.97943237]
[1770680108542,0.002,2110.8,2110.0,0.97943237]
[1770680108769,0.002,2110.8,2110.1,1.18477797]
[1770680109963,0.002,2110.8,2110.1,2.16421034]
[1770680110435,0.9602192,2110.8,2110.1,1.18477797]
[1770680110865,1.18444118,2110.7,2109.7,4.73998963]
[1770680111050,0.9602192,2110.8,2109.7,4.73998963]
[1770680111557,2.14460738,2110.8,2109.7,4.73998963]
[1770680111746,0.9602192,2110.8,2109.7,4.73998963]
[1770680111937,0.9602192,2110.8,2109.7,5.719422]
[1770680114467,0.9602192,2110.8,2109.8,0.97943237]
[1770680115270,0.9602192,2110.8,2109.9,1.18489027]
[1770680115843,0.9602192,2110.8,2109.9,2.16432264]
[1770680116044,0.002,2110.8,2110.0,0.97943237]
[1770680117762,0.002,2110.8,2110.1,1.18577797]
[1770680118177,0.002,2110.6,2110.1,1.18577797]
[1770680119970,0.002,2110.6,2110.1,0.001]
[1770680122256,0.002,2110.6,2110.1,1.18577797]
[1770680123766,0.002,2110.8,2110.1,1.18577797]
[1770680124162,0.002,2110.8,2110.1,2.16236558]
[1770680124477,0.002,2110.8,2110.1,6.03236558]
[1770680124662,0.002,2110.8,2110.2,0.97658761]
[1770680124866,0.002,2110.8,2110.2,4.84658761]
[1770680125659,0.002,2110.8,2110.2,0.97658761]
[1770680125860,0.002,2110.8,2110.2,4.28658761]
[1770680127689,0.002,2110.8,2110.3,1.18466568]
[1770680128253,0.002,2110.8,2110.3,6.03125329]
[1770680128689,0.002,2111.0,2110.4,0.97658761]
[1770680129584,0.002,2111.0,2110.5,2.16114103]
[1770680130080,1e-08,2111.2,2110.5,2.16114103]
[1770680130957,0.002,2110.6,2110.5,2.16114103]
[1770680131158,1e-08,2111.2,2110.5,2.16114103]
[1770680131364,0.002,2110.8,2110.5,2.16114103]
[1770680131586,1e-08,2111.2,2110.5,2.16114103]
[1770680132166,1e-08,2111.2,2110.6,4.993]
[1770680132411,1e-08,2111.2,2110.5,6.03114103]
[1770680134903,0.96134452,2111.2,2110.5,1.18455342]
[1770680136890,0.96134452,2111.2,2110.3,4.73921369]
[1770680137502,0.96134452,2111.2,2110.3,5.7158013]
[1770680137787,1e-08,2111.2,2110.4,0.97658761]
[1770680139105,1e-08,2111.2,2110.5,1.18455342]
[1770680139312,1e-08,2111.2,2110.5,2.16114103]
[1770680140410,1e-08,2111.2,2110.6,0.97658761]
[1770680141886,1e-08,2111.2,2110.7,1.18444118]
[1770680143692,0.002,2111.0,2110.7,1.18444118]
[1770680143905,1e-08,2111.2,2110.7,1.18444118]
[1770680145627,0.96134451,2111.4,2110.7,1.18444118]
[1770680146430,0.96134451,2111.3,2110.7,1.18444118]
[1770680149150,0.96134451,2111.3,2110.6,0.001]
[1770680150452,0.98678194,2111.4,2110.6,0.001]
[1770680150744,0.98678194,2110.7,2110.3,0.001]
[1770680151310,1.18449729,2110.6,2110.3,0.001]
[1770680151509,0.98678194,2110.5,2110.1,0.001]
[1770680152720,0.05928385,2110.4,2109.5,1.1860848]
[1770680152912,0.98678194,2110.3,2109.5,1.1860848]
[1770680153115,0.98678194,2110.3,2109.5,0.001]
[1770680153432,0.98678194,2110.1,2109.5,0.001]
[1770680155325,8.04580985,2111.2,2109.5,0.95725484]
[1770680155326,0.98678194,2110.7,2109.5,0.95725484]
[1770680155525,0.98678194,2110.5,2109.6,1.18505877]
[1770680156956,0.98678194,2110.5,2110.1,0.001]
[1770680157833,0.002,2110.2,2110.1,0.001]
[1770680158053,1.18447734,2110.7,2110.1,0.001]
[1770680158260,0.002,2110.4,2110.1,0.001]
[1770680163146,0.98678194,2111.2,2110.1,0.95725484]
[1770680163445,0.98678194,2111.2,2110.4,0.95625484]
[1770680163649,0.002,2111.3,2110.4,0.95625484]
[1770680164266,0.002,2111.3,2110.5,2.14080826]
[1770680164563,0.002,2111.3,2110.7,0.95625484]
[1770680165081,0.98878194,2111.3,2110.5,1.18455342]
[1770680166350,0.98678194,2111.1,2110.3,1.18466568]
[1770680166680,0.98678194,2111.1,2110.2,4.49468176]
[1770680168369,0.98678194,2110.9,2110.1,0.001]
[1770680170363,0.98878194,2110.9,2110.1,0.001]
[1770680170867,0.98678194,2110.7,2110.1,0.001]
[1770680171666,1.18438506,2110.8,2109.9,0.001]
[1770680171667,0.98678194,2110.5,2109.9,0.001]
[1770680172951,0.98678194,2110.3,2109.9,0.001]
[1770680173861,0.98678194,2110.3,2109.5,0.001]
[1770680174045,0.98678194,2110.1,2109.5,0.001]
[1770680176471,1.1847405,2110.2,2109.5,0.001]
[1770680176654,2.17145107,2110.3,2109.5,0.001]
[1770680176854,0.98678194,2110.2,2109.5,0.001]
[1770680178969,2.17154863,2110.2,2109.5,0.001]
[1770680182052,2.17154863,2110.2,2109.7,0.001]
[1770680183174,1.18476669,2110.2,2109.7,0.001]
[1770680183375,0.9717306,2110.1,2109.7,0.001]
[1770680184153,1.18474539,2110.2,2109.7,0.001]
[1770680184573,2.1564249,2110.3,2109.7,0.001]
[1770680184983,0.9717306,2110.3,2109.7,0.001]
[1770680185155,2.15639848,2110.3,2109.7,0.001]
[1770680189489,1.18460983,2110.4,2109.7,0.001]
[1770680189684,2.15634043,2110.4,2109.7,0.001]
[1770680190790,1.03101445,2110.3,2109.5,0.001]
[1770680190995,0.9717306,2110.0,2109.5,0.001]
[1770680193405,0.9717306,2109.8,2109.5,0.001]
[1770680194817,0.9717306,2109.8,2109.6,0.001]
[1770680195396,1.1850026,2109.7,2109.2,0.001]
[1770680196804,0.9717306,2109.6,2109.2,0.001]
[1770680199218,4.73979981,2109.8,2109.2,0.001]
[1770680199219,0.9717306,2109.8,2109.2,0.001]
[1770680199604,1.18489027,2109.9,2109.2,0.001]
[1770680200619,5.46758764,2110.0,2109.2,0.99680458]
[1770680201298,5.46758764,2110.0,2109.3,1.18522732]
[1770680207449,0.002,2110.2,2109.5,0.05928385]
[1770680207738,0.002,2110.2,2109.6,0.99580458]
[1770680208138,0.002,2110.0,2109.6,0.99580458]
[1770680209340,0.002,2110.0,2109.7,1.1850026]
[1770680214041,0.002,2110.0,2109.7,2.19540781]
[1770680214424,0.002,2110.0,2109.8,1.01040521]
[1770680215648,4.73779636,2110.7,2109.6,4.74001042]
[1770680215649,0.95604204,2110.8,2109.6,1.18505877]
[1770680215946,0.95604204,2110.0,2109.2,0.001]
[1770680216146,0.95604204,2109.8,2109.2,0.001]
[1770680216321,1.01532589,2109.7,2109.2,0.001]
[1770680216518,0.95604204,2109.7,2109.2,0.001]
[1770680216739,2.14106202,2109.7,2109.2,0.001]
[1770680217244,2.20034587,2109.7,2109.2,0.001]
[1770680217445,0.95604204,2109.6,2109.2,0.001]
[1770680218046,0.05928385,2109.9,2109.3,0.001]
[1770680218047,2.14095095,2109.9,2109.3,0.001]
[1770680218236,3.311,2110.1,2109.3,0.001]
[1770680218441,4.49579877,2110.1,2109.4,0.001]
[1770680218641,4.49579877,2110.1,2109.3,0.001]
[1770680219353,4.49579877,2110.1,2109.5,0.5]
[1770680219855,5.45184081,2110.1,2109.5,0.5]
[1770680220030,5.45184081,2110.1,2109.3,0.001]
[1770680220230,0.95604204,2110.8,2109.5,1.01040521]
[1770680220550,1.18428635,2111.0,2109.9,2.19529548]
[1770680220926,0.002,2110.0,2109.9,2.19529548]
[1770680221151,1.18428635,2111.0,2109.9,2.19529548]
[1770680221354,1.18428635,2111.0,2110.0,0.001]
[1770680221932,1.18428635,2111.0,2109.9,2.19529548]
[1770680222129,1.18428635,2111.0,2110.0,0.001]
[1770680223736,0.95604204,2110.6,2110.0,0.001]
[1770680225859,1.18455342,2110.5,2110.0,0.001]
[1770680226155,0.95604204,2110.6,2110.0,0.001]
[1770680226354,1.1844302,2110.8,2110.1,0.001]
[1770680226535,1.1844302,2110.8,2109.8,1.01040521]
[1770680227943,1.1844302,2110.8,2109.9,1.18489027]
[1770680228758,2.14240958,2110.9,2110.0,1.01140521]
[1770680232668,2.14240958,2110.9,2110.1,1.18577797]
[1770680233046,0.002,2110.7,2110.1,1.18577797]
[1770680233839,0.002,2110.7,2110.2,0.001]
[1770680234576,0.002,2110.7,2110.3,0.001]
[1770680234751,0.002,2110.7,2110.2,0.001]
[1770680235942,0.95804204,2110.7,2110.1,0.001]
[1770680236141,0.95804204,2110.7,2110.1,0.002]
[1770680237368,1.18449729,2110.6,2110.1,0.001]
[1770680237569,2.14053933,2110.6,2110.1,0.001]
[1770680238264,0.95604204,2110.5,2110.1,0.001]
[1770680238470,0.95604204,2110.5,2110.2,0.001]
[1770680239862,2.14061517,2110.5,2110.2,0.001]
[1770680241161,2.12786089,2110.7,2110.2,0.001]
[1770680241361,2.12786089,2110.7,2110.3,0.001]
[1770680241562,2.12786089,2110.7,2110.2,0.001]
[1770680245285,2.12786089,2110.7,2110.2,0.002]
[1770680245571,0.002,2110.5,2110.2,0.001]
[1770680246372,0.002,2110.5,2110.3,0.001]
[1770680247778,0.94338507,2110.5,2110.2,0.001]
[1770680248082,0.94338507,2110.5,2110.3,0.001]
[1770680249750,2.12794597,2110.5,2110.2,0.001]
[1770680249973,2.12794597,2110.5,2110.2,0.002]
[1770680250281,0.002,2110.5,2110.3,0.001]
[1770680250453,0.002,2110.7,2110.2,0.001]
[1770680250647,0.002,2110.7,2110.2,1.00207666]
[1770680250853,0.002,2110.9,2110.3,1.00107666]
[1770680251560,0.002,2111.1,2110.3,1.00107666]
[1770680251749,0.002,2111.1,2110.4,1.18460955]
[1770680251949,0.002,2111.1,2110.5,1.00107666]
[1770680252983,0.002,2111.1,2110.7,0.5]
[1770680254573,0.002,2111.1,2110.8,1.18438506]
[1770680255077,0.002,2111.1,2110.3,1.00107666]
[1770680255271,0.002,2111.1,2110.4,1.18457793]
[1770680255272,0.94338507,2111.1,2110.4,1.18457793]
[1770680255580,0.94338507,2111.1,2110.3,1.18462535]
[1770680255969,0.94138507,2110.9,2110.2,1.18569433]
[1770680256172,0.94138507,2110.9,2110.2,1.18569137]
[1770680256758,2.12577013,2110.8,2110.2,0.001]
[1770680257266,2.12569791,2111.0,2110.2,0.001]
[1770680257576,0.94138507,2110.9,2110.2,0.001]
[1770680257977,0.94338507,2110.9,2110.4,0.5]
[1770680258173,0.002,2110.9,2110.4,0.5]
[1770680258668,0.002,2110.9,2110.5,1.18455342]
[1770680259074,0.002,2110.9,2110.4,1.68456865]
[1770680259781,0.002,2110.9,2110.4,1.18456865]
[1770680260089,1.00066892,2110.8,2110.2,0.001]
[1770680260387,0.94138507,2110.8,2110.2,0.001]
[1770680260985,2.12581327,2110.8,2110.2,0.001]
[1770680261563,0.002,2110.9,2110.2,0.001]
[1770680262798,1.18633613,2110.9,2110.2,0.001]
[1770680262995,0.002,2110.9,2110.4,0.5]
[1770680263183,0.002,2110.9,2110.5,1.00107666]
[1770680265672,0.002,2110.9,2110.6,1.18449729]
[1770680266107,0.002,2110.9,2110.6,2.18557395]
[1770680266284,0.002,2111.1,2110.7,1.00107666]
[1770680266636,3.313,2111.7,2110.6,1.18449729]
[1770680266831,0.002,2111.7,2111.1,1.00107666]
[1770680267395,0.002,2111.8,2111.2,1.00107666]
[1770680267814,0.002,2111.8,2111.3,2.18518124]
[1770680268610,0.002,2112.0,2111.5,1.00107666]
[1770680268912,2.12479541,2112.6,2111.5,1.00107666]
[1770680269118,0.94138507,2112.5,2111.5,1.00107666]
[1770680269883,2.12484177,2112.5,2111.6,1.18393635]
[1770680271116,0.002,2111.8,2111.6,1.18393635]
[1770680271311,2.12484177,2112.5,2111.6,1.18393635]
[1770680271702,0.94244439,2112.6,2111.6,1.18393635]
[1770680271910,0.94244439,2112.4,2111.6,1.18393635]
[1770680273892,0.94244439,2112.0,2111.3,1.18409646]
[1770680274612,0.94244439,2112.3,2111.3,1.18409646]
[1770680276728,1.18360003,2112.2,2111.3,1.18409646]
[1770680278624,2.12604442,2112.2,2111.3,1.18409646]
[1770680279324,5.67654197,2112.4,2111.5,0.5]
[1770680279693,0.94244439,2112.3,2111.5,0.5]
[1770680279895,1.00172824,2112.3,2111.2,0.9130186]
[1770680280101,1.00172824,2112.3,2111.1,3.87]
[1770680280406,0.94244439,2112.3,2111.1,4.7830186]
[1770680281409,2.12604442,2112.2,2111.2,2.09717926]
[1770680281615,0.94244439,2112.1,2111.2,2.09717926]
[1770680282228,0.94244439,2112.1,2111.2,1.18416066]
[1770680282526,1.00172824,2112.1,2111.0,1.18422239]
[1770680283093,0.94244439,2111.8,2111.3,0.001]
[1770680283300,0.94244439,2111.6,2111.3,0.001]
[1770680284014,0.94244439,2111.6,2111.0,0.001]
[1770680285421,1.18399242,2111.5,2111.0,0.001]
[1770680285620,1.18399242,2111.5,2110.4,4.73943343]
[1770680285621,1.00172824,2111.4,2110.4,0.001]
[1770680285928,0.94244439,2110.9,2110.4,0.001]
[1770680286310,0.94244439,2110.7,2110.4,0.001]
[1770680289733,2.12694168,2110.6,2110.4,0.001]
[1770680290417,1.18449729,2110.6,2110.4,0.001]
[1770680290623,0.94244439,2111.4,2110.4,0.001]
[1770680290824,1.24327627,2111.5,2110.4,0.001]
[1770680290825,0.94244439,2111.2,2110.4,0.001]
[1770680291025,0.05928385,2111.1,2110.4,0.001]
[1770680291229,0.94244439,2111.0,2110.4,0.001]
[1770680294443,1.18432895,2110.9,2110.4,0.001]
[1770680295944,0.002,2110.8,2110.6,0.001]
[1770680301353,0.002,2111.0,2110.6,0.001]
[1770680303647,0.002,2111.0,2110.6,0.92617899]
[1770680307361,0.002,2111.0,2110.7,1.18444118]
[1770680308355,0.002,2111.0,2110.6,1.18545526]
[1770680308559,0.002,2111.0,2110.6,0.001]
[1770680308560,0.92275974,2111.0,2110.6,0.001]
[1770680308862,0.92075974,2110.3,2110.0,0.001]
[1770680309060,0.92075974,2110.1,2109.5,0.001]
[1770680309242,0.92075974,2110.1,2109.5,0.005]
[1770680309443,1.18483412,2110.0,2109.6,0.004]
[1770680309847,0.98553344,2110.3,2109.6,0.004]
[1770680310045,2.17022642,2110.3,2109.6,0.004]
[1770680310475,2.17022642,2110.3,2109.7,0.001]
[1770680310974,2.17022642,2110.3,2109.7,0.005]
[1770680311148,2.17022642,2110.3,2109.8,0.004]
[1770680311343,0.92075974,2110.2,2109.7,0.005]